fUST/lending_fUST_20240929
["ID","MTS","AMOUNT","RATE_DAILY","PERIOD"]
[339392128,1727550984365,-280.0,0.00023233,120]
[339392130,1727551187157,-168.0,0.00021,30]
[339392131,1727551226515,-332.0,0.00021,30]
[339392132,1727551226544,-500.0,0.00021,30]
[339392133,1727551226572,-124.0,0.00021,30]
[339392134,1727551268299,-376.0,0.00021,30]
[339392135,1727551268327,-94.0,0.00021,30]
[339392137,1727551361400,-250.0,0.00016725,2]
[339392138,1727551361430,-500.0,0.00016895,2]
[339392139,1727551361458,-500.0,0.00016895,2]
[339392140,1727551361488,-500.0,0.00016895,2]
[339392141,1727551361514,-500.0,0.00016895,2]
[339392142,1727551361541,-500.0,0.00016895,2]
[339392143,1727551361564,-300.0,0.00016895,2]
[339392144,1727551361587,-300.0,0.00016895,2]
[339392145,1727551361610,-24900.0,0.00016896,2]
[339392146,1727551361634,-193.160067,0.00017083,2]
[339392147,1727551361657,-286.738848,0.00017203,2]
[339392148,1727551361680,-198.616244,0.00017286,2]
[339392149,1727551361704,-286.738848,0.00017887,2]
[339392150,1727551361726,-483.09898978,0.00017924,2]
[339392151,1727551361751,-193.160067,0.00017973,2]
[339392152,1727551361774,-4773.02371092,0.00018099,2]
[339392153,1727551361796,-237.23015563,0.000181,2]
[339392154,1727551361822,-329.186,0.00018199,2]
[339392155,1727551361844,-572.69571252,0.00018199,2]
[339392156,1727551361868,-500.0,0.00018199,2]
[339392157,1727551361892,-336.82300821,0.00018199,2]
[339392158,1727551361916,-500.0,0.00018199,2]
[339392159,1727551361942,-500.0,0.00018199,2]
[339392160,1727551361966,-500.0,0.00018199,2]
[339392161,1727551361991,-500.0,0.00018199,2]
[339392162,1727551362016,-500.0,0.00018199,2]
[339392163,1727551362043,-318.2324363,0.00018199,2]
[339392164,1727551362069,-500.0,0.00018199,2]
[339392165,1727551362094,-500.0,0.00018199,2]
[339392166,1727551362119,-500.0,0.00018199,2]
[339392167,1727551362145,-400.0,0.00018199,2]
[339392168,1727551362171,-57416.7018168,0.000182,2]
[339392169,1727551362197,-218.1107618,0.000182,2]
[339392170,1727551362221,-1120.6029077,0.00018221,2]
[339392171,1727551362244,-1120.60290767,0.00018241,2]
[339392172,1727551362269,-1120.60290767,0.00018262,2]
[339392173,1727551362293,-1120.60290767,0.00018282,2]
[339392174,1727551362316,-1120.60290767,0.00018302,2]
[339392175,1727551368987,500.0,0.00016895,2]
[339392176,1727551370968,7066.61254455,0.00018171,2]
[339392177,1727551379292,402.85625111,0.00016895,2]
[339392180,1727551710858,-831.0,0.00023233,120]
[339392262,1727551838317,-3248.93684964,0.00016932,2]
[339392263,1727551838330,-1484.91508733,0.00016932,2]
[339392264,1727551838342,-473.21000055,0.00016932,2]
[339392265,1727551838726,-19692.93806248,0.00016932,2]
[339392266,1727551838737,-317.718812,0.00017236,2]
[339392267,1727551838748,-382.318463,0.00017311,2]
[339392268,1727551838757,-166.661537,0.00017416,2]
[339392269,1727551838767,-2900.0,0.0001752,2]
[339392270,1727551838777,-2002.68078726,0.000176,2]
[339392271,1727551838788,-382.318463,0.00017996,2]
[339392272,1727551838797,-150.0,0.00018105,2]
[339392273,1727551838807,-177.0,0.0001824,2]
[339392274,1727551838816,-300.0,0.00018289,2]
[339392275,1727551838826,-300.0,0.00018289,2]
[339392276,1727551838836,-400.88699877,0.00018289,2]
[339392277,1727551838847,-585.77610575,0.00018289,2]
[339392278,1727551838856,-500.0,0.00018289,2]
[339392279,1727551838866,-500.0,0.00018289,2]
[339392280,1727551838878,-500.0,0.00018289,2]
[339392281,1727551838888,-500.0,0.00018289,2]
[339392282,1727551838897,-500.0,0.00018289,2]
[339392283,1727551838906,-500.0,0.00018289,2]
[339392284,1727551838915,-402.76270541,0.00018289,2]
[339392285,1727551838925,-218.11076181,0.0001829,2]
[339392286,1727551838934,-1000.0,0.0001829,2]
[339392287,1727551838945,-23403.74062683,0.0001829,2]
[339392294,1727551839948,-82448.51537547,0.0001829,2]
[339392295,1727551839958,-150.112233,0.000183,2]
[339392296,1727551839967,-268.104037,0.000183,2]
[339392297,1727551839976,-166.661537,0.00018324,2]
[339392298,1727551839986,-500.0,0.00018373,2]
[339392299,1727551839996,-500.0,0.00018373,2]
[339392300,1727551840006,-500.0,0.00018373,2]
[339392301,1727551840019,-500.0,0.00018373,2]
[339392302,1727551840029,-200.0144113,0.00018373,2]
[339392303,1727551840039,-500.0,0.00018373,2]
[339392304,1727551840048,-500.0,0.00018373,2]
[339392305,1727551840057,-500.0,0.00018373,2]
[339392306,1727551840066,-500.0,0.00018373,2]
[339392307,1727551840075,-500.0,0.00018373,2]
[339392308,1727551840084,-500.0,0.00018373,2]
[339392309,1727551840094,-500.0,0.00018373,2]
[339392310,1727551840104,-500.0,0.00018373,2]
[339392311,1727551840113,-500.0,0.00018373,2]
[339392312,1727551840123,-261.60247268,0.00018373,2]
[339392314,1727551840132,-500.0,0.00018373,2]
[339392315,1727551840141,-500.0,0.00018373,2]
[339392316,1727551840151,-500.0,0.00018373,2]
[339392317,1727551840160,-500.27468397,0.00018373,2]
[339392318,1727551840170,-500.0,0.00018373,2]
[339392319,1727551840180,-500.51828043,0.00018373,2]
[339392320,1727551840191,-500.0,0.00018373,2]
[339392321,1727551840201,-336561.26181309,0.0001838,2]
[339392331,1727551843083,-33.49692452,0.00018373,2]
[339392337,1727551846005,-10.1231325,0.00018373,2]
[339392340,1727551861167,-198.0,0.00023233,120]
[339392342,1727551928611,-82.0,0.00023233,120]
[339392343,1727551928671,-277.0,0.00025,120]
[339392347,1727552688773,812.45,0.00010959,2]
[339392348,1727552699323,677.04,0.00010959,2]
[339392349,1727552710157,564.2,0.00010959,2]
[339392382,1727553032150,-4662.40603846,0.00016162,2]
[339392383,1727553032162,-3559.87245276,0.00016162,2]
[339392396,1727553038319,-16677.72150878,0.00016162,2]
[339392397,1727553038329,-158.859406,0.00016539,2]
[339392398,1727553038340,-164.900519,0.0001655,2]
[339392399,1727553038349,-191.159231,0.00016594,2]
[339392400,1727553038361,-164.900519,0.00016766,2]
[339392401,1727553038372,-300.0,0.00016868,2]
[339392402,1727553038383,-300.0,0.00016868,2]
[339392403,1727553038394,-3000.0,0.0001691,2]
[339392404,1727553038403,-164.900519,0.00016981,2]
[339392405,1727553038412,-164.900519,0.00017197,2]
[339392406,1727553038422,-164.900519,0.00017412,2]
[339392407,1727553038431,-191.159231,0.00017964,2]
[339392408,1727553038441,-4176.39574709,0.00018056,2]
[339392409,1727553038450,-500.0,0.00018156,2]
[339392410,1727553038459,-410.04327403,0.00018156,2]
[339392411,1727553038469,-280.62089914,0.00018156,2]
[339392412,1727553038478,-381.93389378,0.00018156,2]
[339392413,1727553038488,-500.0,0.00018156,2]
[339392414,1727553038497,-500.0,0.00018156,2]
[339392415,1727553038506,-500.0,0.00018156,2]
[339392416,1727553038516,-40230.17046608,0.00018157,3]
[339392417,1727553038525,-32926.80801756,0.00018157,3]
[339392449,1727553040362,-1677.43150767,0.00018157,3]
[339392450,1727553040373,-73853.1371713,0.00018157,2]
[339392451,1727553040384,-272077.9807895,0.00018157,2]
[339392520,1727554232380,-380.665521,0.00015308,2]
[339392522,1727554232391,-380.665521,0.00015993,2]
[339392524,1727554232400,-158.859406,0.00016004,2]
[339392526,1727554232410,-225.0,0.00016183,2]
[339392528,1727554232419,-225.0,0.00016228,2]
[339392529,1727554232428,-3654.34627866,0.00016261,2]
[339392530,1727554232438,-225.0,0.00016272,2]
[339392531,1727554232448,-225.0,0.00016316,2]
[339392532,1727554232458,-300.0,0.00016338,2]
[339392533,1727554232467,-300.0,0.00016338,2]
[339392534,1727554232476,-5000.00000001,0.00016339,2]
[339392535,1727554232485,-21385.63215407,0.0001635,2]
[339392538,1727554232501,-694.76841677,0.0001635,2]
[339392540,1727554232512,-2819.59942916,0.0001635,2]
[339392542,1727554232521,-225.0,0.00016361,2]
[339392544,1727554232530,-225.0,0.00016405,2]
[339392546,1727554232539,-172.26889639,0.00016439,2]
[339392548,1727554232549,-225.0,0.00016449,2]
[339392550,1727554232558,-225.0,0.00016494,2]
[339392552,1727554232567,-225.0,0.00016538,2]
[339392554,1727554232576,-225.0,0.00016583,2]
[339392556,1727554232585,-225.0,0.00016627,2]
[339392558,1727554232594,-225.0,0.00016671,2]
[339392560,1727554232603,-380.665521,0.00016678,2]
[339392562,1727554232612,-225.0,0.00016716,2]
[339392564,1727554232621,-225.0,0.0001676,2]
[339392566,1727554232630,-225.0,0.00016805,2]
[339392568,1727554232639,-225.0,0.00016849,2]
[339392570,1727554232648,-225.0,0.00016893,2]
[339392571,1727554232657,-225.0,0.00016938,2]
[339392572,1727554232666,-225.0,0.00016982,2]
[339392573,1727554232674,-225.0,0.00017026,2]
[339392574,1727554232684,-160.453283,0.00017064,2]
[339392575,1727554232692,-160.453283,0.00017107,2]
[339392576,1727554232701,-160.453283,0.00017149,2]
[339392577,1727554232710,-420.0,0.00017857,2]
[339392578,1727554232719,-433.35909798,0.00017879,2]
[339392581,1727554238431,-32.54585151,0.00017879,2]
[339392582,1727554238442,-420.0,0.00017972,2]
[339392583,1727554238452,-1569.98618184,0.00017975,2]
[339392586,1727554240515,-5496.62636271,0.00017975,2]
[339392587,1727554240525,-500.0,0.00018036,2]
[339392588,1727554240537,-196.43462939,0.00018036,2]
[339392589,1727554240547,-500.0,0.00018036,2]
[339392590,1727554240557,-287.03029182,0.00018036,2]
[339392591,1727554240568,-500.0,0.00018036,2]
[339392592,1727554240578,-167.35372565,0.00018036,2]
[339392593,1727554240588,-173772.087463,0.00018037,2]
[339392594,1727554240599,-62565.244088,0.00018037,2]
[339392595,1727554240609,-36207.15341947,0.00018037,3]
[339392596,1727554240619,-31143.81557271,0.00018037,3]
[339392597,1727554240630,-117043.88778352,0.00018037,2]
[339392703,1727555432549,-300.0,0.00016876,2]
[339392705,1727555432558,-9563.18042398,0.00016877,2]
[339392804,1727555440762,-15336.81957602,0.00016877,2]
[339392805,1727555440772,-7066.61254455,0.00017554,2]
[339392806,1727555440782,-1000.0,0.00017818,2]
[339392807,1727555440792,-150.0,0.00017836,2]
[339392808,1727555440802,-7514.1547669,0.00017856,2]
[339392809,1727555440813,-196.43462939,0.00017865,2]
[339392810,1727555440823,-287.03029182,0.00017865,2]
[339392811,1727555440833,-500.0,0.00017865,2]
[339392812,1727555440844,-500.0,0.00017865,2]
[339392813,1727555440853,-500.0,0.00017865,2]
[339392814,1727555440864,-167.35372565,0.00017865,2]
[339392815,1727555440874,-12906.67195281,0.00017865,3]
[339392816,1727555440887,-23300.48146666,0.00017865,3]
[339392817,1727555440897,-31143.81557271,0.00017865,3]
[339392818,1727555440907,-174851.852032,0.00017866,2]
[339392819,1727555440916,-115558.098455,0.00017866,2]
[339392820,1727555440925,-78028.75944719,0.00017866,2]
[339392821,1727555440938,-326.46807621,0.00017866,2]
[339392883,1727556631809,-300.0,0.00016681,2]
[339392885,1727556631820,-300.0,0.00016681,2]
[339392898,1727556631933,-3929.00883331,0.00016682,2]
[339392942,1727556637972,-2751.2436261,0.00016682,2]
[339392943,1727556637983,-18219.74754059,0.00016682,2]
[339392944,1727556637993,-1000.0,0.00017676,2]
[339392945,1727556638002,-7066.61254455,0.00017741,2]
[339392946,1727556638011,-500.0,0.00017765,2]
[339392947,1727556638020,-200.92120427,0.00017765,2]
[339392948,1727556638032,-500.0,0.00017765,2]
[339392949,1727556638042,-167.14760796,0.00017765,2]
[339392950,1727556638051,-32586.43807753,0.00017765,3]
[339392951,1727556638060,-28029.43401543,0.00017765,3]
[339392952,1727556638070,-176044.060862,0.00017766,2]
[339392953,1727556638079,-109780.193532,0.00017766,2]
[339392954,1727556638088,-168945.93015235,0.00017766,2]
[339392959,1727556639915,-660.72,0.00017766,2]
[339393011,1727557769131,-280.91787125,0.00016059,2]
[339393079,1727557832266,-300.0,0.00016059,2]
[339393081,1727557832276,-300.0,0.00016059,2]
[339393083,1727557832285,-10532.4541254,0.0001606,2]
[339393084,1727557832294,-164.636859,0.00016358,2]
[339393086,1727557832303,-250.0,0.00016483,2]
[339393088,1727557832313,-164.636859,0.00016642,2]
[339393090,1727557832323,-164.636859,0.00016926,2]
[339393092,1727557832332,-5000.0,0.00017,2]
[339393094,1727557832341,-164.636859,0.00017211,2]
[339393096,1727557832351,-7066.61254455,0.00017327,2]
[339393098,1727557832360,-3613.82980539,0.00017377,2]
[339393100,1727557832369,-156.76313694,0.00017477,2]
[339393102,1727557832379,-156.76313694,0.00017506,2]
[339393104,1727557832389,-156.76313694,0.00017535,2]
[339393106,1727557832398,-1000.0,0.00017544,2]
[339393108,1727557832409,-420.0,0.00017557,2]
[339393110,1727557832419,-500.27468397,0.00017573,2]
[339393112,1727557832429,-625.52723501,0.00017573,2]
[339393114,1727557832438,-500.0,0.00017573,2]
[339393116,1727557832449,-500.0,0.00017573,2]
[339393118,1727557832460,-500.0,0.00017573,2]
[339393121,1727557832471,-500.0,0.00017573,2]
[339393123,1727557832483,-500.0,0.00017573,2]
[339393125,1727557832492,-500.0,0.00017576,2]
[339393127,1727557832503,-162.09595449,0.00017576,2]
[339393129,1727557832513,-500.0,0.00017576,2]
[339393131,1727557832522,-202.8668601,0.00017576,2]
[339393133,1727557832532,-596.56573626,0.00017576,2]
[339393135,1727557832543,-500.0,0.00017576,2]
[339393137,1727557832554,-184.94025537,0.00017576,2]
[339393139,1727557832566,-468.92988007,0.00017576,2]
[339393142,1727557832575,-500.0,0.00017576,2]
[339393143,1727557832584,-500.0,0.00017576,2]
[339393146,1727557832595,-500.0,0.00017576,2]
[339393148,1727557832606,-500.0,0.00017576,2]
[339393150,1727557832615,-500.0,0.00017576,2]
[339393152,1727557832626,-69945.71080376,0.00017577,2]
[339393154,1727557832638,-6171.01572855,0.00017577,2]
[339393201,1727557838139,-500.0,0.00017325,2]
[339393203,1727557838149,-500.0,0.00017325,2]
[339393205,1727557838159,-500.0,0.00017325,2]
[339393207,1727557838168,-500.0,0.00017325,2]
[339393209,1727557838177,-500.0,0.00017325,2]
[339393211,1727557838187,-500.0,0.00017325,2]
[339393213,1727557838196,-500.0,0.00017325,2]
[339393215,1727557838205,-500.0,0.00017325,2]
[339393217,1727557838214,-500.0,0.00017325,2]
[339393219,1727557838224,-500.0,0.00017325,2]
[339393221,1727557838233,-500.0,0.00017325,2]
[339393223,1727557838242,-500.0,0.00017325,2]
[339393225,1727557838251,-500.0,0.00017325,2]
[339393227,1727557838261,-500.0,0.00017325,2]
[339393229,1727557838272,-500.0,0.00017325,2]
[339393231,1727557838282,-313.53064421,0.00017325,2]
[339393233,1727557838292,-500.0,0.00017325,2]
[339393235,1727557838303,-500.0,0.00017325,2]
[339393237,1727557838314,-112332.66821669,0.00017577,2]
[339393239,1727557838324,-114193.140149,0.00017577,2]
[339393242,1727557838336,-65621.24512024,0.00017587,2]
[339393244,1727557838347,-268.104036,0.000176,2]
[339393246,1727557838356,-906.80258733,0.00017632,2]
[339393248,1727557838366,-34916.48622419,0.00017634,3]
[339393250,1727557838376,-31311.55872347,0.00017634,3]
[339393252,1727557838389,-156457.20229496,0.00017634,2]
[339393277,1727557840177,-6277.39443333,0.00017634,2]
[339393278,1727557840190,-2119.41837599,0.00017634,2]
[339393279,1727557840202,-16232.64922881,0.00017634,2]
[339393280,1727557840216,-4905.05885495,0.00017634,2]
[339393281,1727557840248,-28581.72859507,0.00017634,2]
[339393282,1727557840261,-162325.33771389,0.00017634,2]
[339393283,1727557840270,-228386.280298,0.00017634,2]
[339393284,1727557840280,-151.0,0.00017635,2]
[339393285,1727557840292,-151.0,0.00017635,2]
[339393286,1727557840302,-152.400802,0.00017635,2]
[339393287,1727557840311,-1199.655987,0.00017635,2]
[339393288,1727557840321,-1199.655987,0.00017635,2]
[339393289,1727557840330,-1199.655987,0.00017635,2]
[339393290,1727557840340,-1199.655987,0.00017635,2]
[339393291,1727557840349,-151.0,0.00017635,2]
[339393292,1727557840358,-151.0,0.00017635,2]
[339393293,1727557840367,-151.0,0.00017635,2]
[339393294,1727557840377,-151.0,0.00017635,2]
[339393295,1727557840386,-151.0,0.00017635,2]
[339393296,1727557840396,-2996.494776,0.00017635,2]
[339393297,1727557840405,-151.0,0.00017635,2]
[339393298,1727557840416,-2996.494776,0.00017635,2]
[339393299,1727557840425,-2996.494776,0.00017635,2]
[339393300,1727557840435,-2996.494776,0.00017635,2]
[339393301,1727557840447,-309.4699,0.00017635,2]
[339393302,1727557840458,-309.4699,0.00017635,2]
[339393303,1727557840467,-309.4699,0.00017635,2]
[339393304,1727557840477,-309.4699,0.00017635,2]
[339393305,1727557840486,-151.417271,0.00017635,2]
[339393306,1727557840495,-114193.140149,0.00017635,2]
[339393307,1727557840504,-151.0,0.00017636,2]
[339393308,1727557840513,-1199.655987,0.00017636,2]
[339393309,1727557840523,-1199.655987,0.00017636,2]
[339393310,1727557840532,-151.0,0.00017636,2]
[339393311,1727557840541,-151.0,0.00017636,2]
[339393312,1727557840551,-151.0,0.00017636,2]
[339393313,1727557840561,-2996.494776,0.00017636,2]
[339393314,1727557840570,-2996.494776,0.00017636,2]
[339393315,1727557840580,-309.4699,0.00017636,2]
[339393316,1727557840590,-309.4699,0.00017636,2]
[339393317,1727557840599,-151.0,0.00017644,2]
[339393318,1727557840608,-1199.655987,0.00017644,2]
[339393319,1727557840618,-1199.655987,0.00017644,2]
[339393320,1727557840627,-151.0,0.00017644,2]
[339393321,1727557840637,-151.0,0.00017644,2]
[339393322,1727557840646,-151.0,0.00017644,2]
[339393323,1727557840655,-2996.494776,0.00017644,2]
[339393324,1727557840666,-2996.494776,0.00017644,2]
[339393325,1727557840676,-309.4699,0.00017644,2]
[339393326,1727557840686,-309.4699,0.00017644,2]
[339393327,1727557840695,-82448.51537547,0.00017644,2]
[339393328,1727557840704,-61687.08424632,0.00017645,2]
[339393329,1727557840714,-420.0,0.00017665,2]
[339393330,1727557840724,-500.0,0.00017673,2]
[339393331,1727557840733,-500.0,0.00017673,2]
[339393332,1727557840744,-500.0,0.00017673,2]
[339393333,1727557840753,-200.0144113,0.00017673,2]
[339393334,1727557840763,-500.0,0.00017673,2]
[339393335,1727557840772,-500.0,0.00017673,2]
[339393336,1727557840782,-500.0,0.00017673,2]
[339393337,1727557840791,-500.0,0.00017673,2]
[339393338,1727557840801,-500.0,0.00017673,2]
[339393339,1727557840810,-500.0,0.00017673,2]
[339393340,1727557840819,-500.0,0.00017673,2]
[339393341,1727557840828,-500.0,0.00017673,2]
[339393342,1727557840838,-500.0,0.00017673,2]
[339393343,1727557840847,-500.0,0.00017673,2]
[339393344,1727557840856,-76754.74495356,0.00017687,2]
[339393368,1727557843055,-1113.26999997,0.00017687,2]
[339393373,1727557846111,-381.92818453,0.00017325,2]
[339393421,1727559032246,-4441.60395833,0.00016594,2]
[339393569,1727559040328,-2966.68629017,0.00016594,2]
[339393570,1727559040338,-7066.61254455,0.00017425,2]
[339393571,1727559040348,-300.0,0.0001744,2]
[339393572,1727559040358,-300.0,0.0001744,2]
[339393573,1727559040368,-1000.0,0.00017558,2]
[339393574,1727559040378,-214.692238,0.00017635,2]
[339393575,1727559040388,-214.692238,0.00017635,2]
[339393576,1727559040398,-400.783099,0.00017635,2]
[339393577,1727559040408,-400.783099,0.00017635,2]
[339393578,1727559040420,-214.692238,0.00017635,2]
[339393579,1727559040430,-400.783099,0.00017635,2]
[339393580,1727559040439,-214.692238,0.00017635,2]
[339393581,1727559040448,-400.783099,0.00017635,2]
[339393582,1727559040459,-214.692238,0.00017636,2]
[339393583,1727559040468,-400.783099,0.00017636,2]
[339393584,1727559040478,-214.692238,0.00017636,2]
[339393585,1727559040487,-400.783099,0.00017636,2]
[339393586,1727559040497,-500.0,0.00017643,2]
[339393587,1727559040506,-500.0,0.00017643,2]
[339393588,1727559040516,-152.90855371,0.00017643,2]
[339393589,1727559040525,-214.692238,0.00017644,2]
[339393590,1727559040535,-400.783099,0.00017644,2]
[339393591,1727559040544,-400.783099,0.00017644,2]
[339393592,1727559040555,-214.692238,0.00017644,2]
[339393593,1727559040564,-500.0,0.00017656,2]
[339393594,1727559040574,-479.45817876,0.00017656,2]
[339393595,1727559040583,-328.25091605,0.00017656,2]
[339393596,1727559040593,-500.0,0.00017656,2]
[339393597,1727559040602,-500.0,0.00017656,2]
[339393599,1727559040612,-367.59601538,0.00017656,2]
[339393600,1727559040621,-500.0,0.00017656,2]
[339393601,1727559040631,-500.0,0.00017656,2]
[339393602,1727559040640,-7237.81851271,0.00017657,2]
[339393603,1727559040652,-1391.25999892,0.00017657,2]
[339393604,1727559040663,-83874.75936486,0.00017657,2]
[339393639,1727559046387,-616.49,0.00017577,2]
[339393746,1727559886050,155.4065456,0.00015,2]
[339393747,1727559893364,948.1362587,0.0001,2]
[339393748,1727559893390,29058.50767555,0.0001,2]
[339393749,1727559954713,155.0,0.00014114,2]
[339393750,1727559959453,155.0,0.00014114,2]
[339393751,1727559964012,155.0,0.00014114,2]
[339393752,1727559968677,155.0,0.00014114,2]
[339393753,1727559973732,155.0,0.00014114,2]
[339393754,1727559978386,155.0,0.00014114,2]
[339393755,1727559983343,155.0,0.00014114,2]
[339393756,1727559987944,155.0,0.00014114,2]
[339393757,1727559992480,240.20603817,0.00014114,2]
[339393758,1727560010201,-205.02266256,0.00017338,2]
[339393786,1727560232477,-294.97733744,0.00017338,2]
[339393787,1727560232487,-87.93778415,0.00017376,2]
[339393788,1727560232500,-283.43650347,0.00017376,2]
[339393847,1727560240536,-2790.72679207,0.00017376,2]
[339393848,1727560240547,-300.0,0.00017425,2]
[339393849,1727560240560,-300.0,0.00017425,2]
[339393850,1727560240570,-3081.06874279,0.00017426,2]
[339393851,1727560240583,-2786.9999993,0.00017426,2]
[339393852,1727560240596,-852.49173482,0.00017426,2]
[339393853,1727560240611,-346.05206764,0.00017426,2]
[339393854,1727560240620,-2742.54430811,0.00017427,2]
[339393855,1727560240629,-500.0,0.00017436,2]
[339393856,1727560240638,-500.0,0.00017436,2]
[339393857,1727560240648,-558.25330539,0.00017436,2]
[339393858,1727560240658,-500.0,0.00017436,2]
[339393859,1727560240667,-500.0,0.00017436,2]
[339393860,1727560240678,-500.0,0.00017436,2]
[339393861,1727560240688,-500.0,0.00017436,2]
[339393862,1727560240698,-173.13925615,0.00017436,2]
[339393863,1727560240707,-335.62072514,0.00017436,2]
[339393864,1727560240718,-500.0,0.00017436,2]
[339393865,1727560240727,-500.0,0.00017436,2]
[339393866,1727560240738,-229.77564124,0.00017436,2]
[339393867,1727560240748,-507.31721076,0.00017436,2]
[339393868,1727560240757,-500.0,0.00017436,2]
[339393869,1727560240767,-82448.51537547,0.00017437,2]
[339393870,1727560240777,-500.0,0.00017476,2]
[339393871,1727560240786,-467.04162506,0.00017477,2]
[339393872,1727560240796,-177.0,0.000175,2]
[339393873,1727560240808,-1000.0,0.000175,2]
[339393874,1727560240818,-150.112236,0.000175,2]
[339393875,1727560240827,-160.0,0.00017526,2]
[339393876,1727560240836,-28180.40285113,0.00017526,3]
[339393877,1727560240845,-31424.83760177,0.00017526,3]
[339393878,1727560240854,-354434.768384,0.00017527,2]
[339393879,1727560240864,-209252.01946,0.00017527,2]
[339393880,1727560240873,-54092.50047668,0.00017527,2]
[339393895,1727560243545,-22.78029584,0.00017527,2]
[339393922,1727560324227,250.0,0.00022,120]
[339393923,1727560341716,250.0,0.0002,120]
[339393924,1727560404799,350.75,0.00022,120]
[339394027,1727561437796,-447.8692694,0.00016357,2]
[339394029,1727561437808,-160.1169192,0.00016442,2]
[339394031,1727561437819,-345.645,0.00017157,2]
[339394034,1727561437828,-256.36881141,0.00017191,2]
[339394078,1727561439739,-6810.24373314,0.00017191,2]
[339394079,1727561439750,-467.04162506,0.00017317,2]
[339394080,1727561439760,-300.0,0.00017336,2]
[339394081,1727561439770,-300.0,0.00017336,2]
[339394082,1727561439780,-2766.83844472,0.00017337,2]
[339394083,1727561439789,-2468.28987729,0.00017387,2]
[339394084,1727561439798,-1000.0,0.00017407,2]
[339394085,1727561439809,-177.0,0.0001744,2]
[339394086,1727561439819,-414.5991735,0.00017472,2]
[339394087,1727561439829,-500.0,0.00017473,2]
[339394088,1727561439838,-500.0,0.00017473,2]
[339394089,1727561439849,-599.69720308,0.00017473,2]
[339394090,1727561439858,-299.41634463,0.00017473,2]
[339394091,1727561439869,-500.0,0.00017473,2]
[339394092,1727561439879,-500.35145325,0.00017473,2]
[339394093,1727561439889,-500.0,0.00017473,2]
[339394094,1727561439899,-500.0,0.00017473,2]
[339394095,1727561439910,-500.0,0.00017473,2]
[339394096,1727561439920,-500.0,0.00017473,2]
[339394097,1727561439931,-500.0,0.00017473,2]
[339394098,1727561439943,-200.0144113,0.00017473,2]
[339394099,1727561439954,-500.0,0.00017473,2]
[339394100,1727561439964,-500.0,0.00017473,2]
[339394101,1727561439974,-500.0,0.00017473,2]
[339394102,1727561439983,-500.0,0.00017473,2]
[339394103,1727561439993,-500.0,0.00017473,2]
[339394104,1727561440003,-500.0,0.00017473,2]
[339394105,1727561440013,-500.0,0.00017485,2]
[339394106,1727561440023,-234.93450759,0.00017485,2]
[339394107,1727561440033,-500.0,0.00017485,2]
[339394108,1727561440043,-405.12204754,0.00017485,2]
[339394109,1727561440054,-160.84294886,0.00017485,2]
[339394110,1727561440062,-4286.41161061,0.00017486,3]
[339394111,1727561440074,-1394.54566784,0.00017486,3]
[339394112,1727561440095,-25743.88032332,0.00017486,3]
[339394113,1727561440106,-28180.40285113,0.00017486,3]
[339394114,1727561440115,-531648.735532,0.00017486,2]
[339394115,1727561440126,-94265.66392819,0.00017486,2]
[339394153,1727561803413,-800.0,0.00015737,2]
[339394154,1727561803437,-800.0,0.00015737,2]
[339394155,1727561803460,-800.0,0.00015737,2]
[339394156,1727561803483,-300.0,0.00015917,2]
[339394157,1727561803506,-300.0,0.00015917,2]
[339394158,1727561803528,-800.0,0.00015918,2]